bitfinex/quotes_ETHUSD_20241215
["timestamp","ask_amount","ask_price","bid_price","bid_amount"]
[1734301008061,0.02548616,3870.0,3869.9,0.00558319]
[1734301008274,3.18504,3870.5,3869.9,0.00558319]
[1734301008602,0.02548616,3870.0,3869.9,0.00558319]
[1734301008806,2.58393,3870.1,3869.9,0.00558319]
[1734301009006,0.02548616,3870.0,3869.9,0.81018319]
[1734301010420,0.02548616,3870.0,3869.9,0.00558319]
[1734301010971,2.60945616,3870.0,3869.9,0.00558319]
[1734301011766,3.12877978,3870.0,3869.9,0.00558319]
[1734301013340,3.73017978,3870.0,3869.9,0.00558319]
[1734301016962,6.04688168,3870.0,3869.9,3.19e-06]
[1734301018151,4.97525124,3870.0,3869.9,3.19e-06]
[1734301018561,6.0564886,3870.0,3869.9,3.19e-06]
[1734301019513,3.73017978,3870.0,3869.9,3.19e-06]
[1734301019899,4.97485241,3870.0,3869.9,3.19e-06]
[1734301020226,6.05608977,3870.0,3869.9,3.19e-06]
[1734301020774,6.05608791,3870.0,3869.9,3.19e-06]
[1734301021060,4.97486199,3870.0,3869.9,3.19e-06]
[1734301021200,9.58258552,3870.0,3869.9,3.19e-06]
[1734301021407,7.97486199,3870.0,3869.9,3.19e-06]
[1734301022034,9.58258552,3870.0,3869.9,3.19e-06]
[1734301022435,7.97486199,3870.0,3869.9,3.19e-06]
[1734301022653,9.05524951,3870.0,3869.9,3.19e-06]
[1734301023009,7.97486199,3870.0,3869.9,3.19e-06]
[1734301023439,7.97430437,3870.0,3869.9,3.19e-06]
[1734301023612,9.05463074,3870.0,3869.9,3.19e-06]
[1734301024214,8.48084765,3870.0,3869.9,3.19e-06]
[1734301024655,9.56086016,3870.0,3869.9,3.19e-06]
[1734301025059,8.48084765,3870.0,3869.9,3.19e-06]
[1734301025266,10.63857118,3870.0,3869.9,3.19e-06]
[1734301026077,10.68877165,3870.0,3869.9,3.19e-06]
[1734301026282,10.65052535,3870.0,3869.9,3.19e-06]
[1734301027822,10.93802873,3870.0,3869.9,3.19e-06]
[1734301028023,10.93802873,3870.0,3867.5,0.8178]
[1734301028024,2.58551,3867.8,3867.5,0.8178]
[1734301028278,2.18836267,3868.7,3867.5,0.8178]
[1734301028279,0.02304355,3867.7,3867.5,0.8178]
[1734301028570,2.58528,3868.1,3867.5,0.8178]
[1734301028724,1.07941678,3868.9,3867.5,0.8178]
[1734301028725,2.58477,3868.9,3867.5,0.8178]
[1734301028916,2.58478,3868.8,3867.7,0.8178]
[1734301029120,4.77298267,3869.1,3867.7,0.8178]
[1734301029121,2.58485,3868.7,3867.7,0.8178]
[1734301029317,2.58464,3869.0,3867.7,0.8178]
[1734301029964,2.58498,3868.5,3867.7,0.8178]
[1734301030166,2.18836267,3869.1,3867.7,0.8178]
[1734301030368,2.58512,3868.3,3867.7,0.8178]
[1734301030549,2.58477,3868.9,3867.7,0.8178]
[1734301030732,2.5849,3868.7,3867.7,0.8178]
[1734301030938,0.6014,3868.8,3867.7,0.8178]
[1734301030939,2.58504,3868.5,3867.7,0.8178]
[1734301031188,0.6014,3868.8,3867.7,0.8178]
[1734301031387,2.58506,3868.4,3867.7,0.8178]
[1734301035156,2.58512,3868.3,3867.7,0.8178]
[1734301036264,3.53742527,3869.0,3867.7,0.8178]
[1734301036575,2.58434,3869.5,3868.1,2.58524]
[1734301036809,2.58434,3869.5,3868.3,2.58511]
[1734301036967,2.58434,3869.5,3868.4,0.8178]
[1734301037155,2.58434,3869.5,3868.6,0.8178]
[1734301039497,2.58415,3869.8,3868.6,0.8178]
[1734301040313,3.0,3870.0,3868.6,0.8046]
[1734301040616,3.0,3870.0,3868.2,0.52079752]
[1734301040617,2.58396,3870.1,3868.8,2.58476]
[1734301040788,2.58396,3870.1,3868.9,1.063076]
[1734301040975,2.58396,3870.1,3869.0,0.8046]
[1734301041177,2.58384,3870.2,3869.0,0.8046]
[1734301041409,2.18836267,3870.3,3869.0,0.8046]
[1734301041583,3.0,3870.1,3869.0,0.8046]
[1734301041786,2.58401,3870.0,3869.0,0.8046]
[1734301042936,2.18836267,3870.7,3869.1,0.8046]
[1734301043221,4.77192267,3870.7,3869.1,0.8046]
[1734301043449,2.58381,3870.3,3869.3,0.8046]
[1734301043854,0.58892903,3870.6,3869.3,0.8046]
[1734301044002,2.58385,3870.2,3869.3,0.8046]
[1734301046953,2.58385,3870.2,3869.3,2.0546]
[1734301047256,0.58892903,3870.6,3869.4,0.2393522]
[1734301047410,2.58391,3870.1,3869.4,0.2393522]
[1734301049439,3.17254903,3870.6,3869.3,2.0546]
[1734301049440,2.58424,3869.7,3869.3,2.0546]
[1734301049653,2.58438,3869.4,3869.3,2.0546]
[1734301049851,2.58438,3869.4,3869.3,1.25]
[1734301051520,2.58418,3869.7,3869.3,1.25]
[1734301051719,2.58438,3869.4,3869.3,1.25]
[1734301054639,1.07941678,3870.1,3869.4,0.8046]
[1734301054964,2.58401,3870.0,3869.4,0.8046]
[1734301055112,2.58373,3870.4,3869.5,0.20546]
[1734301055314,2.58405,3869.9,3869.5,0.20546]
[1734301055562,2.58389,3870.2,3869.5,0.20546]
[1734301055738,2.58371,3870.4,3869.5,0.20546]
[1734301055939,2.58398,3870.0,3869.6,0.226006]
[1734301056626,2.58404,3869.9,3869.6,0.226006]
[1734301056952,2.58404,3869.9,3869.4,0.8046]
[1734301058415,2.58407,3869.9,3869.4,0.8046]
[1734301058641,1.07941678,3870.6,3869.4,0.8046]
[1734301058841,4.68081678,3870.8,3869.4,0.8046]
[1734301059058,3.0,3870.8,3869.6,0.772]
[1734301060064,1.07941678,3871.2,3869.7,0.7871]
[1734301060264,2.58336,3871.0,3869.9,0.7871]
[1734301060631,2.58338,3870.9,3869.9,0.7871]
[1734301060848,2.58338,3870.9,3870.1,0.7871]
[1734301061372,0.01,3871.3,3870.1,0.7871]
[1734301061738,2.58331,3871.0,3870.1,0.7871]
[1734301062334,2.58346,3870.8,3870.1,0.7871]
[1734301062571,2.58351,3870.7,3870.1,0.7871]
[1734301062754,2.58337,3871.0,3870.1,0.7871]
[1734301063165,0.01,3871.3,3870.1,0.7871]
[1734301063336,2.58339,3870.9,3870.1,0.7871]
[1734301064457,2.58324,3871.1,3870.1,0.7871]
[1734301065031,2.58324,3871.1,3870.3,0.7903]
[1734301066444,0.01,3871.3,3870.3,0.7903]
[1734301066892,2.58328,3871.1,3870.3,0.7903]
[1734301069561,2.58333,3871.0,3870.3,0.7903]
[1734301070363,0.01,3871.3,3870.3,0.7903]
[1734301070364,2.58338,3870.9,3870.3,0.7903]
[1734301071492,0.01,3871.3,3870.3,0.7903]
[1734301071671,2.58317,3871.2,3870.3,0.7903]
[1734301072001,2.5835,3870.8,3870.3,0.7903]
[1734301072587,2.58353,3870.7,3870.3,0.7903]
[1734301075704,2.58359,3870.6,3870.3,0.7903]
[1734301078395,2.58371,3870.4,3870.3,0.7903]
[1734301080794,2.58371,3870.4,3869.4,0.7817]
[1734301080795,2.58377,3870.4,3869.4,0.7817]
[1734301080995,2.7847179,3871.3,3869.7,2.7233179]
[1734301080996,0.01,3871.3,3869.7,2.7233179]
[1734301081169,2.58324,3871.1,3870.1,0.8063]
[1734301081489,2.58324,3871.1,3870.3,0.8063]
[1734301082055,0.01,3871.3,3870.3,0.8063]
[1734301082366,2.58332,3871.0,3870.3,0.8063]
[1734301083167,0.01,3871.3,3870.3,0.8063]
[1734301083168,2.58318,3871.2,3870.3,0.8063]
[1734301083578,2.58318,3871.2,3870.1,1.0219085]
[1734301083579,2.58318,3871.2,3870.5,0.8321]
[1734301085302,0.01,3871.3,3870.5,0.8321]
[1734301085615,2.58326,3871.1,3870.5,0.8321]
[1734301086308,2.58317,3871.2,3870.5,0.8321]
[1734301087713,2.58332,3871.0,3870.5,0.8321]
[1734301088275,2.58318,3871.2,3870.5,0.8321]
[1734301088491,0.01,3871.3,3870.5,0.8321]
[1734301088711,2.58325,3871.1,3870.5,0.8321]
[1734301088927,2.58331,3871.0,3870.5,0.8321]
[1734301090313,2.58318,3871.2,3870.5,0.8321]
[1734301090468,0.01,3871.3,3870.5,0.8321]
[1734301090667,2.58331,3871.0,3870.5,0.8321]
[1734301092645,0.01,3871.3,3870.5,0.8321]
[1734301092798,1.77947018,3872.1,3870.5,0.8321]
[1734301092799,0.160345,3872.1,3871.7,3.0]
[1734301093117,0.160345,3872.1,3871.9,0.8159]
[1734301093423,0.160345,3872.1,3872.0,0.8159]
[1734301095903,0.160345,3872.1,3871.1,3.0]
[1734301095904,0.160345,3872.1,3871.2,0.8159]
[1734301096274,0.160345,3872.1,3871.3,0.52479006]
[1734301096619,2.742925,3872.1,3871.3,0.52479006]
[1734301096819,2.58265,3872.0,3871.2,0.8159]
[1734301097325,0.160345,3872.1,3871.2,0.8159]
[1734301097674,2.742955,3872.1,3871.2,0.94968506]
[1734301097916,0.160345,3872.1,3871.2,0.94968506]
[1734301100715,0.15723445,3872.1,3871.2,0.94968506]
[1734301102326,0.15723445,3872.1,3871.5,0.7712]
[1734301102659,0.15723445,3872.1,3872.0,0.7712]
[1734301102862,0.15723445,3872.1,3872.0,1.10659]
[1734301103961,0.15723445,3872.1,3872.0,0.7712]
[1734301107147,0.15723445,3872.1,3872.0,0.79702044]
[1734301107465,0.15723445,3872.1,3872.0,0.7712]
[1734301107919,0.15723445,3872.1,3872.0,3.94640205]
[1734301108122,0.15723445,3872.1,3872.0,6.99362755]
[1734301108368,0.15723445,3872.1,3872.0,8.4737691]
[1734301108727,0.15723445,3872.1,3872.0,8.98172429]
[1734301109465,0.15723445,3872.1,3872.0,8.98012076]
[1734301109638,0.10723445,3872.1,3872.0,8.98012076]
[1734301110440,0.10723445,3872.1,3872.0,7.65721196]
[1734301111055,0.10723445,3872.1,3872.0,5.80652224]
[1734301111264,0.10723445,3872.1,3872.0,1.32638069]
[1734301112983,2.58184,3873.2,3872.0,1.32638069]
[1734301113731,3.18313,3873.4,3872.1,0.8191]
[1734301113930,2.5818,3873.3,3872.1,0.8191]
[1734301114648,0.005,3873.8,3872.1,0.8191]
[1734301114830,0.005,3873.8,3872.0,0.55518069]
[1734301114831,2.58154,3873.7,3872.3,0.8191]
[1734301115575,0.005,3873.8,3872.4,0.8191]
[1734301115778,0.005,3873.8,3872.5,1.20299481]
[1734301115933,2.58153,3873.7,3872.5,1.20299481]
[1734301117286,2.58153,3873.7,3872.6,0.7614]
[1734301118271,0.005,3873.8,3872.6,0.7614]
[1734301118612,2.58154,3873.7,3872.6,0.7614]
[1734301118930,3.05784798,3873.7,3872.6,0.7614]
[1734301119326,0.6014,3873.5,3872.6,0.7614]
[1734301119545,2.58178,3873.3,3872.6,0.7614]
[1734301120332,0.6014,3873.5,3872.6,0.7614]
[1734301120576,2.58191,3873.1,3872.6,0.7614]
[1734301120787,2.58191,3873.1,3872.2,0.7921]
[1734301120788,2.58214,3872.8,3872.2,0.7921]
[1734301121661,2.58214,3872.8,3872.0,0.0472255]
[1734301121879,2.58218,3872.7,3872.0,0.0472255]
[1734301122183,2.58228,3872.6,3871.9,0.7921]
[1734301122336,3.18346,3872.9,3871.3,0.7946]
[1734301122541,3.11710491,3872.8,3871.3,0.7946]
[1734301122736,2.58256,3872.2,3871.3,0.7946]
[1734301123159,2.58217,3872.7,3871.3,0.7946]
[1734301123370,2.58256,3872.2,3871.3,0.7946]
[1734301124447,2.77293981,3872.8,3871.3,0.7946]
[1734301124448,3.18399,3872.1,3871.3,0.7946]
[1734301124928,3.18399,3872.1,3871.3,1.0633833]
[1734301126203,0.13085001,3873.6,3871.4,0.8005]
[1734301126204,0.6014,3873.0,3871.4,0.8005]
[1734301126375,0.6014,3873.4,3871.8,0.8005]
[1734301126689,3.18311,3873.4,3871.9,2.58269]
[1734301126884,3.18311,3873.4,3872.1,0.8005]
[1734301127236,0.6014,3873.4,3872.1,0.8005]
[1734301128565,2.58164,3873.5,3872.1,0.8005]
[1734301128775,2.58171,3873.4,3872.1,0.8005]
[1734301129385,2.77293981,3873.7,3872.1,2.58257]
[1734301129386,2.58158,3873.6,3872.1,2.58257]
[1734301129545,2.58158,3873.6,3872.2,1.058757]
[1734301129755,2.58158,3873.6,3872.3,0.8005]
[1734301130303,0.005,3873.8,3872.8,0.8005]
[1734301130582,0.005,3873.8,3872.9,0.82631115]
[1734301130790,0.005,3873.8,3872.9,0.8005]
[1734301130940,0.005,3873.8,3873.0,0.36407681]
[1734301131342,0.005,3873.8,3873.0,0.338264]
[1734301131745,0.005,3873.8,3873.1,0.8005]
[1734301133545,0.005,3873.8,3873.2,2.58184]
[1734301133746,0.005,3873.8,3873.3,0.8005]
[1734301134844,0.005,3873.8,3873.4,0.33824]
[1734301135972,0.005,3873.8,3873.3,0.8005]
[1734301136789,0.005,3873.8,3873.7,2.58151]
[1734301137161,0.005,3873.8,3873.7,3.38201]
[1734301137894,0.005,3873.8,3873.7,0.8005]
[1734301140179,0.005,3873.8,3873.0,3.39354749]
[1734301140180,0.005,3873.8,3873.3,0.8257]
[1734301143184,0.005,3873.8,3873.3,1.166465]
[1734301144187,0.005,3873.8,3873.3,0.8257]
[1734301144991,0.005,3873.8,3872.7,2.58211]
[1734301144992,0.6064,3873.8,3872.9,0.8257]
[1734301145701,0.6064,3873.8,3872.6,0.8257]
[1734301145702,0.005,3873.8,3872.6,0.8257]
[1734301146047,2.58645,3873.8,3872.6,0.8257]
[1734301146290,2.58645,3873.8,3872.6,1.3248109]
[1734301147359,3.18294,3873.7,3872.6,0.8257]
[1734301148496,0.6014,3873.7,3872.6,0.8257]
[1734301148696,2.58158,3873.6,3872.6,0.8257]
[1734301149470,2.58165,3873.5,3872.6,0.8257]
[1734301149944,0.6014,3873.7,3872.6,0.8257]
[1734301150213,0.005,3873.8,3872.3,1.06881438]
[1734301150214,0.6014,3873.0,3872.3,0.7951]
[1734301150499,0.6014,3873.0,3872.1,0.5220502]
[1734301152199,3.1834,3873.0,3872.1,0.5220502]
[1734301153437,2.582,3873.0,3872.1,0.5220502]
[1734301153735,0.6014,3873.3,3872.1,0.5220502]
[1734301154230,2.58194,3873.1,3872.1,0.5220502]
[1734301155136,2.58194,3873.1,3872.0,0.7951]
[1734301155315,0.6014,3873.3,3872.1,0.88346745]
[1734301155522,0.6014,3873.3,3872.0,1.23977344]
[1734301155694,2.58197,3873.1,3872.0,1.23977344]
[1734301156332,2.58197,3873.1,3872.1,0.88367584]
[1734301156630,2.58197,3873.1,3872.0,1.23977344]
[1734301156937,2.582,3873.0,3872.0,1.23977344]
[1734301157484,2.58192,3873.1,3872.1,0.23085878]
[1734301157989,0.005,3873.8,3872.1,0.23085878]
[1734301157990,0.005,3873.8,3873.7,0.831]
[1734301158191,0.005,3873.8,3873.7,3.41251]
[1734301158435,0.005,3873.8,3873.7,4.29494512]
[1734301158613,0.005,3873.8,3873.7,7.22375428]
[1734301159051,0.005,3873.8,3873.7,6.66084748]
[1734301159546,0.005,3873.8,3873.7,6.1540954]
[1734301159831,0.005,3873.8,3873.7,6.15400474]
[1734301160392,2.17153981,3875.8,3873.7,6.15400474]
[1734301160393,1.23976178,3875.9,3873.8,0.7595]
[1734301160742,1.23976178,3875.9,3875.0,0.7595]
[1734301160743,0.160345,3875.9,3875.0,0.7595]
[1734301161297,0.160345,3875.9,3875.0,3.34012]
[1734301161608,0.160345,3875.9,3875.1,2.58056]
[1734301162842,0.6064,3875.8,3875.0,0.7595]
[1734301163044,0.160345,3875.9,3875.0,0.7595]
[1734301165228,0.160345,3875.9,3875.0,1.14591268]
[1734301165931,2.740395,3875.9,3875.0,0.7595]
[1734301166135,0.160345,3875.9,3875.0,0.7595]
[1734301166721,0.160345,3875.9,3874.7,0.7595]
[1734301167080,2.58034,3875.5,3874.3,0.7595]
[1734301167235,3.18664,3875.7,3874.3,3.34059]
[1734301167416,2.58025,3875.6,3874.4,0.334059]
[1734301167618,0.6064,3875.7,3874.4,0.334059]
[1734301167821,0.6064,3875.7,3874.5,2.58097]
[1734301168021,0.6064,3875.7,3874.3,0.7595]
[1734301168885,2.58024,3875.6,3874.3,0.7595]
[1734301169069,2.58033,3875.5,3874.3,0.7595]
[1734301169234,2.58039,3875.4,3874.4,0.334067]
[1734301169420,0.90022848,3875.7,3874.3,0.7595]
[1734301170581,0.90022848,3875.7,3873.9,0.04720233]
[1734301170582,2.17153981,3875.1,3873.9,0.7595]
[1734301170719,2.58091,3874.7,3873.5,0.7595]
[1734301170924,2.58072,3874.9,3873.6,0.51061546]
[1734301171266,0.53586598,3874.8,3873.5,0.7595]
[1734301171485,2.58084,3874.7,3873.5,0.7595]
[1734301171658,0.6064,3875.0,3873.5,0.7595]
[1734301172074,2.58084,3874.7,3873.5,0.7595]
[1734301172698,0.6064,3875.0,3873.5,3.34112]
[1734301172876,3.18705,3875.0,3873.6,2.96781268]
[1734301173557,2.58071,3874.9,3873.6,2.96781268]
[1734301174349,2.58064,3875.0,3873.7,0.8178]
[1734301174687,0.6064,3875.4,3873.7,0.8178]
[1734301174688,2.5806,3875.1,3873.8,0.37856527]
[1734301175091,2.58066,3875.0,3873.8,0.37856527]
[1734301175340,2.58072,3874.9,3873.9,0.4164218]
[1734301176719,2.58044,3875.3,3873.9,1.6664218]
[1734301176924,2.58091,3874.6,3873.9,1.25]
[1734301177242,2.58099,3874.5,3873.9,1.25]
[1734301177546,0.6064,3874.6,3873.9,1.25]
[1734301177844,0.6064,3875.1,3873.9,1.49540827]
[1734301178350,0.6064,3875.5,3874.0,0.815]
[1734301178946,3.18673,3875.5,3874.1,2.58123]
[1734301179154,3.18673,3875.5,3874.0,0.815]
[1734301179155,0.6064,3875.5,3874.0,0.815]
[1734301179459,2.58051,3875.2,3874.1,0.23104083]
[1734301179610,0.6064,3875.5,3874.1,0.23104083]
[1734301179957,2.58074,3874.9,3874.0,0.815]
[1734301180263,0.6064,3875.5,3874.0,0.815]
[1734301180264,2.58078,3874.8,3874.0,0.815]
[1734301181223,2.58085,3874.7,3874.0,0.815]
[1734301181430,2.58091,3874.6,3874.0,0.815]
[1734301182085,3.445021,3875.1,3873.9,1.25]
[1734301182227,2.58117,3874.3,3873.9,1.25]
[1734301183041,2.58118,3874.2,3873.9,1.25]
[1734301184646,2.58131,3874.0,3873.9,1.25]
[1734301186610,2.58126,3874.1,3873.9,1.25]
[1734301186762,2.58131,3874.0,3873.9,1.25]
[1734301188457,4.75284981,3874.0,3873.9,1.25]
[1734301188767,5.54688579,3874.0,3873.9,1.25]
[1734301189102,3.18751,3874.3,3873.9,1.25]
[1734301189103,2.58118,3874.2,3873.9,1.25]
[1734301189396,0.6064,3874.3,3873.9,1.25]
[1734301189599,0.6064,3874.7,3873.9,1.25]
[1734301189822,2.58116,3874.3,3873.9,1.25]
[1734301189953,2.53116,3874.3,3873.9,1.25]
[1734301190602,0.6064,3874.7,3874.0,0.794]
[1734301190897,2.58111,3874.3,3874.0,0.794]
[1734301191898,0.6064,3874.7,3874.0,0.794]
[1734301192071,2.58098,3874.5,3874.0,0.794]
[1734301192267,2.58105,3874.4,3874.0,0.794]
[1734301192968,2.58095,3874.6,3874.0,0.794]
[1734301194122,2.58076,3874.9,3874.0,0.794]
[1734301195409,2.77793981,3875.2,3874.0,0.794]
[1734301195410,2.58058,3875.1,3874.0,0.794]
[1734301196692,2.58058,3875.1,3874.0,3.37531]
[1734301196895,2.58058,3875.1,3874.1,0.337531]
[1734301197436,2.58058,3875.1,3874.0,0.794]
[1734301198121,2.77793981,3875.6,3874.0,0.794]
[1734301198323,2.58044,3875.3,3874.1,2.58124]
[1734301200133,2.77793981,3875.6,3874.0,0.794]
[1734301200338,2.58065,3875.0,3874.0,0.794]
[1734301200698,2.58044,3875.3,3874.0,0.794]
[1734301200875,2.58072,3874.9,3874.0,0.794]
[1734301201078,2.58044,3875.3,3874.0,0.794]
[1734301201528,2.58077,3874.8,3874.0,0.794]
[1734301202435,2.58092,3874.6,3874.0,0.794]
[1734301203107,0.6064,3874.8,3874.0,0.794]
[1734301203734,2.58058,3875.1,3874.0,1.13155]
[1734301204028,2.58058,3875.1,3874.0,0.794]
[1734301204527,2.58064,3875.0,3874.0,0.794]
[1734301204831,2.838704,3875.0,3874.0,0.794]
[1734301204986,2.58064,3875.0,3874.0,0.794]
[1734301208193,0.6064,3875.4,3874.0,0.794]
[1734301208499,2.58052,3875.2,3874.0,0.794]
[1734301208905,0.6064,3875.4,3874.0,0.794]
[1734301209143,2.58063,3875.1,3874.0,0.794]
[1734301209343,2.58063,3875.1,3874.0,1.131536]
[1734301209924,2.58063,3875.1,3874.1,0.8021]
[1734301212137,2.58064,3875.0,3874.1,0.8021]
[1734301212455,2.58068,3875.0,3874.1,0.8021]
[1734301213015,2.58068,3875.0,3874.1,1.140453]
[1734301214418,1.075069,3875.3,3874.1,1.140453]
[1734301214762,1.075069,3875.3,3874.2,0.8178]
[1734301215059,1.075069,3875.4,3874.2,0.8178]
[1734301215384,1.075069,3875.3,3874.2,0.8178]
[1734301215659,2.58052,3875.2,3874.2,0.8178]
[1734301216250,3.0,3875.3,3874.2,0.8178]
[1734301216451,3.0,3875.1,3874.2,0.8178]
[1734301216773,1.075069,3875.4,3874.2,0.8178]
[1734301216774,2.17153981,3875.2,3874.2,0.8178]
[1734301217269,2.58089,3874.7,3874.2,0.8178]
[1734301217775,2.58077,3874.8,3874.2,0.8178]
[1734301217919,2.58092,3874.6,3874.1,1.24]
[1734301218914,2.58098,3874.5,3874.1,1.24]
[1734301220408,4.262159,3875.0,3874.1,1.24]
[1734301220672,2.58112,3874.3,3874.1,1.24]
[1734301220964,2.58117,3874.2,3874.1,1.24]
[1734301225328,3.656239,3874.2,3874.1,1.24]
[1734301225939,2.58117,3874.2,3874.1,1.24]
[1734301226622,3.6622658,3874.2,3874.1,1.24]
[1734301228573,2.58143,3873.9,3873.2,0.8045]
[1734301228771,3.43924926,3874.2,3873.2,0.8045]
[1734301229387,2.58158,3873.6,3873.2,0.8045]
[1734301229870,2.17153981,3873.9,3873.2,0.8045]
[1734301230088,2.58165,3873.5,3873.2,0.8045]
[1734301230376,2.58165,3873.5,3872.8,0.8106]
[1734301231259,2.58152,3873.7,3872.8,0.8106]
[1734301231471,2.58159,3873.6,3872.8,0.8106]
[1734301231677,2.58152,3873.7,3872.8,0.8106]
[1734301232239,0.05139439,3873.6,3872.8,0.8106]
[1734301232874,2.63297439,3873.6,3872.8,0.8106]
[1734301233240,0.05139439,3873.6,3872.8,0.8106]
[1734301233474,2.17153981,3873.9,3872.8,0.8106]
[1734301233475,2.58165,3873.5,3872.8,0.8106]
[1734301233990,0.05407501,3873.4,3872.8,0.8106]
[1734301234561,2.63578501,3873.4,3872.8,0.8106]
[1734301237375,2.58177,3873.3,3872.8,0.8106]
[1734301237695,0.05396884,3873.2,3872.8,0.8106]
[1734301238863,2.58167,3873.5,3872.8,0.8106]
[1734301239062,0.05393262,3873.1,3872.8,0.8106]
[1734301239300,2.58167,3873.5,3872.8,0.8106]
[1734301239487,0.05390675,3873.0,3872.8,0.8106]
[1734301239797,2.58167,3873.5,3872.8,0.8106]
[1734301239997,0.05388089,3872.9,3872.8,0.8106]
[1734301240159,2.58167,3873.5,3872.8,0.8106]
[1734301240365,0.05388089,3872.9,3872.8,0.8106]
[1734301240864,2.17153981,3873.5,3872.4,1.070343]
[1734301241064,2.58231,3872.5,3872.4,0.8121]
[1734301241466,2.63593147,3872.5,3872.4,0.8121]
[1734301242166,0.05362147,3872.5,3872.4,0.8121]
[1734301242599,2.5821,3872.9,3872.4,0.8121]
[1734301242801,0.05348114,3872.5,3872.4,0.8121]
[1734301243040,2.5821,3872.9,3872.4,0.8121]
[1734301243210,0.05348114,3872.5,3872.4,0.8121]
[1734301243410,2.5821,3872.9,3872.4,0.8121]
[1734301243574,0.05348114,3872.5,3872.4,0.8121]
[1734301243774,2.5821,3872.9,3872.4,0.8121]
[1734301244109,2.17153981,3873.1,3872.4,0.8121]
[1734301244331,0.05355874,3872.8,3872.4,0.8121]
[1734301244622,2.58185,3873.2,3872.4,0.8121]
[1734301244623,2.57874338,3873.2,3872.4,0.8121]
[1734301244822,0.05343931,3872.7,3872.4,0.8121]
[1734301245023,2.57874338,3873.2,3872.4,0.8121]
[1734301245228,0.05341344,3872.6,3872.4,0.8121]
[1734301245394,2.17153981,3873.5,3872.4,0.8121]
[1734301245395,2.58172,3873.4,3872.4,0.8121]
[1734301245600,2.58172,3873.4,3872.5,0.8121]
[1734301245801,0.05359449,3873.3,3872.5,0.8121]
[1734301246019,0.05359449,3873.3,3872.7,3.39427]
[1734301246326,2.17153981,3874.8,3872.9,0.8121]
[1734301246527,0.04625638,3873.2,3873.1,3.39396]
[1734301246686,2.17153981,3874.8,3873.1,3.39396]
[1734301246687,2.58104,3874.4,3873.1,2.58186]
[1734301246894,2.58104,3874.4,3873.3,0.8121]
[1734301247303,2.17153981,3874.8,3873.3,0.8121]
[1734301247488,2.17153981,3874.8,3873.3,2.58172]
[1734301247489,2.58091,3874.6,3873.3,2.58172]
[1734301247719,2.58091,3874.6,3873.4,0.8121]
[1734301247922,2.17153981,3874.8,3873.6,0.8121]
[1734301247923,4.75232981,3874.8,3873.6,0.8121]
[1734301248147,2.58085,3874.7,3873.6,0.8121]
[1734301248439,2.17153981,3874.8,3873.7,0.8121]
[1734301248588,2.58088,3874.7,3873.7,0.8121]
[1734301248793,2.17153981,3874.8,3873.9,0.8121]
[1734301249130,2.58087,3874.7,3873.9,0.8121]
[1734301252543,0.0476223,3874.6,3873.9,0.8121]
[1734301252691,2.6285623,3874.6,3873.9,0.8121]
[1734301252902,0.0476223,3874.6,3873.9,0.8121]
[1734301253097,2.58083,3874.8,3873.9,0.8121]
[1734301253298,0.04792926,3874.5,3873.9,0.8121]
[1734301253523,5.17153981,3875.0,3873.9,0.8121]
[1734301253721,0.04790341,3874.4,3873.9,0.8121]
[1734301253931,5.17153981,3875.0,3873.9,0.8121]
[1734301254107,0.6064,3875.1,3873.9,0.8121]
[1734301254108,0.04787757,3874.3,3873.9,0.8121]
[1734301254325,0.6064,3875.1,3873.9,0.8121]
[1734301254326,3.0,3874.9,3873.9,0.8121]
[1734301254674,5.58072,3874.9,3874.0,0.339359]
[1734301254816,0.04778665,3874.8,3874.1,0.8121]
[1734301255459,2.58065,3875.0,3874.1,0.8121]
[1734301255775,3.0,3874.9,3874.1,0.8121]
[1734301256057,3.04808499,3874.9,3874.1,0.8121]
[1734301258322,0.04808499,3874.9,3874.1,0.8121]
[1734301258934,4.75210981,3875.2,3874.1,0.8121]
[1734301259263,4.75210981,3875.2,3874.2,0.7924]
[1734301259617,0.04820426,3875.1,3874.2,0.7924]
[1734301260465,0.04820426,3875.1,3874.2,2.58115]
[1734301260671,0.04820426,3875.1,3874.3,0.8245]
[1734301260873,5.17153981,3875.6,3873.8,0.8245]
[1734301261171,7.75178981,3875.6,3874.4,0.7618]
[1734301261349,0.04847919,3875.5,3874.6,0.7618]
[1734301261521,3.0,3875.6,3874.6,0.7618]
[1734301261721,0.04845336,3875.4,3874.6,0.7618]
[1734301261964,3.0,3875.6,3874.6,0.7618]
[1734301262122,0.04857309,3875.3,3874.6,0.7618]
[1734301262317,0.04862476,3875.5,3874.7,0.8256]
[1734301262524,0.04854726,3875.2,3874.7,0.8256]
[1734301262875,3.0,3875.6,3874.7,0.8256]
[1734301263019,0.04852142,3875.1,3874.7,0.8256]
[1734301263225,3.0,3875.4,3874.7,0.8256]
[1734301263625,0.04857309,3875.3,3874.7,0.8256]
[1734301264321,3.0,3875.5,3874.7,0.8256]
[1734301264519,0.04885604,3875.2,3874.7,0.8256]
[1734301264769,3.0,3875.5,3874.7,0.8256]
[1734301264962,0.04885099,3875.1,3874.7,0.8256]
[1734301265146,3.0,3875.5,3874.7,0.8256]
[1734301265346,0.04882516,3875.0,3874.7,0.8256]
[1734301265665,3.0,3875.5,3874.8,0.7869]
[1734301266038,0.69276656,3875.8,3874.8,0.7869]
[1734301266243,2.58017,3875.8,3874.8,0.7869]
[1734301266438,2.58018,3875.7,3874.8,0.7869]
[1734301266641,2.58018,3875.7,3874.3,0.50609199]
[1734301266642,0.0490254,3875.7,3874.4,1.3369]